[Event "Early-Titled-Tuesday-Blitz-May-07-2024"]
[Site "Chess.com"]
[Date "2024.05.07"]
[Round "1"]
[White "GothamChess"]
[Black "RusPakhom"]
[Result "1-0"]
[WhiteElo "2719"]
[BlackElo "2407"]
[TimeControl "180+1"]
[EndTime "8:07:22 PDT"]
[Termination "GothamChess won on time"]

1. e4 {[%clk 0:03:00.9]} 1... c5 {[%clk 0:02:58.9]} 2. Nc3 {[%clk 0:02:59.5]}
2... d6 {[%clk 0:02:59]} 3. d4 {[%clk 0:02:59.5]} 3... cxd4 {[%clk 0:02:59.3]}
4. Qxd4 {[%clk 0:03:00.4]} 4... Nc6 {[%clk 0:02:57.8]} 5. Qd2 {[%clk 0:02:58.5]}
5... g6 {[%clk 0:02:55.5]} 6. b3 {[%clk 0:02:58.8]} 6... Bh6 {[%clk 0:02:52.1]}
7. f4 {[%clk 0:02:58.6]} 7... Nf6 {[%clk 0:02:49.9]} 8. Bb2 {[%clk 0:02:58.1]}
8... O-O {[%clk 0:02:47.6]} 9. O-O-O {[%clk 0:02:56.7]} 9... e5 {[%clk
0:02:45.6]} 10. g3 {[%clk 0:02:56.9]} 10... Bg4 {[%clk 0:02:26.5]} 11. Nge2
{[%clk 0:02:49.9]} 11... Nd4 {[%clk 0:02:22.1]} 12. Kb1 {[%clk 0:02:47.3]} 12...
Rc8 {[%clk 0:02:17.6]} 13. Nxd4 {[%clk 0:02:28.1]} 13... Bxd1 {[%clk 0:02:04.4]}
14. Qxd1 {[%clk 0:02:26.2]} 14... exd4 {[%clk 0:02:03.6]} 15. Qxd4 {[%clk
0:02:27.1]} 15... Bg7 {[%clk 0:01:58.5]} 16. Nd5 {[%clk 0:02:18.8]} 16... Nh5
{[%clk 0:01:53.1]} 17. Qxa7 {[%clk 0:02:16.6]} 17... Bxb2 {[%clk 0:01:43.2]} 18.
Kxb2 {[%clk 0:02:17.5]} 18... Nf6 {[%clk 0:01:37.4]} 19. Qxb7 {[%clk 0:01:55.2]}
19... Nxd5 {[%clk 0:01:24.8]} 20. Qxd5 {[%clk 0:01:55.1]} 20... Qf6+ {[%clk
0:01:10.5]} 21. e5 {[%clk 0:01:46.6]} 21... dxe5 {[%clk 0:01:09.4]} 22. fxe5
{[%clk 0:01:34.1]} 22... Qf2 {[%clk 0:01:05]} 23. Bd3 {[%clk 0:01:15.1]} 23...
Rfd8 {[%clk 0:01:02.8]} 24. Qe4 {[%clk 0:01:14.9]} 24... Qc5 {[%clk 0:00:25.3]}
25. e6 {[%clk 0:01:09]} 25... Qc3+ {[%clk 0:00:22.3]} 26. Kb1 {[%clk 0:01:08.3]}
26... f5 {[%clk 0:00:19]} 27. Qe2 {[%clk 0:01:01.3]} 27... Re8 {[%clk
0:00:07.1]} 28. Re1 {[%clk 0:00:51.7]} 28... Rc7 {[%clk 0:00:04.1]} 29. Qe5
{[%clk 0:00:47.8]} 29... Qxe5 {[%clk 0:00:02.5]} 30. Rxe5 {[%clk 0:00:47.8]}
30... Rce7 {[%clk 0:00:02.6]} 31. a4 {[%clk 0:00:48.4]} 31... Kg7 {[%clk
0:00:01.9]} 32. Bc4 {[%clk 0:00:49.1]} 32... Kf6 {[%clk 0:00:02.2]} 33. Re2
{[%clk 0:00:49.9]} 33... g5 {[%clk 0:00:02.1]} 34. a5 {[%clk 0:00:49.8]} 34...
f4 {[%clk 0:00:02.4]} 35. gxf4 {[%clk 0:00:35.2]} 35... gxf4 {[%clk 0:00:02.7]}
36. Bd5 {[%clk 0:00:35.6]} 36... Kf5 {[%clk 0:00:02.2]} 37. b4 {[%clk
0:00:29.3]} 37... Kg4 {[%clk 0:00:02.2]} 38. Rg2+ {[%clk 0:00:22.9]} 38... Kh3
{[%clk 0:00:01.4]} 39. Rf2 {[%clk 0:00:23.5]} 39... Kg4 {[%clk 0:00:01.8]} 40.
a6 {[%clk 0:00:21.2]} 40... Rd8 {[%clk 0:00:01.5]} 41. c4 {[%clk 0:00:20.7]} 1-0

[Event "Early-Titled-Tuesday-Blitz-May-07-2024"]
[Site "Chess.com"]
[Date "2024.05.07"]
[Round "1"]
[White "rookpower2004"]
[Black "ChelsieMonica"]
[Result "1-0"]
[WhiteElo "2571"]
[BlackElo "2538"]
[TimeControl "180+1"]
[EndTime "8:07:22 PDT"]
[Termination "rookpower2004 won by checkmate"]

1. e4 {[%clk 0:03:00.9]} 1... c5 {[%clk 0:02:58.6]} 2. Nf3 {[%clk 0:02:59.9]}
2... e6 {[%clk 0:02:58.9]} 3. d3 {[%clk 0:02:59.5]} 3... Nc6 {[%clk 0:02:58.7]}
4. Nbd2 {[%clk 0:02:59.8]} 4... d5 {[%clk 0:02:58.9]} 5. g3 {[%clk 0:02:59.9]}
5... d4 {[%clk 0:02:59]} 6. Bg2 {[%clk 0:03:00]} 6... g6 {[%clk 0:02:58.9]} 7.
O-O {[%clk 0:03:00.5]} 7... Bg7 {[%clk 0:02:59.5]} 8. Re1 {[%clk 0:02:59.1]}
8... Nge7 {[%clk 0:02:59.7]} 9. Nf1 {[%clk 0:02:52.5]} 9... e5 {[%clk
0:02:59.6]} 10. h3 {[%clk 0:02:48.8]} 10... O-O {[%clk 0:02:59.7]} 11. N3h2
{[%clk 0:02:49.2]} 11... f5 {[%clk 0:02:58.2]} 12. exf5 {[%clk 0:02:46.7]} 12...
Bxf5 {[%clk 0:02:56.5]} 13. f4 {[%clk 0:02:46.4]} 13... Kh8 {[%clk 0:02:49.3]}
14. Nf3 {[%clk 0:02:43.5]} 14... exf4 {[%clk 0:02:47.4]} 15. Bxf4 {[%clk
0:02:42.8]} 15... Nd5 {[%clk 0:02:46.5]} 16. Bg5 {[%clk 0:02:39.4]} 16... Bf6
{[%clk 0:02:46.6]} 17. Qd2 {[%clk 0:02:26.9]} 17... Bxg5 {[%clk 0:02:35.7]} 18.
Nxg5 {[%clk 0:02:27.8]} 18... Ne3 {[%clk 0:02:27.7]} 19. Nxe3 {[%clk 0:02:09.2]}
19... Qxg5 {[%clk 0:02:27.7]} 20. Nf1 {[%clk 0:02:09.8]} 20... Qf6 {[%clk
0:02:26.4]} 21. g4 {[%clk 0:02:02.2]} 21... Bd7 {[%clk 0:02:20.9]} 22. Ng3
{[%clk 0:02:02.7]} 22... Qg7 {[%clk 0:02:16.9]} 23. Ne4 {[%clk 0:01:54.9]} 23...
b6 {[%clk 0:02:17.2]} 24. Rf1 {[%clk 0:01:47.7]} 24... Rxf1+ {[%clk 0:02:14.7]}
25. Rxf1 {[%clk 0:01:48.6]} 25... Rf8 {[%clk 0:02:14.9]} 26. Qe1 {[%clk
0:01:35.3]} 26... h6 {[%clk 0:01:39.5]} 27. a3 {[%clk 0:01:18.2]} 27... Rxf1+
{[%clk 0:01:26.9]} 28. Qxf1 {[%clk 0:01:19.1]} 28... Ne5 {[%clk 0:01:25.5]} 29.
Qf2 {[%clk 0:01:02.7]} 29... h5 {[%clk 0:01:15.9]} 30. g5 {[%clk 0:00:54.4]}
30... Qf7 {[%clk 0:00:46.3]} 31. Nf6 {[%clk 0:00:51.6]} 31... Be6 {[%clk
0:00:45.4]} 32. Qf4 {[%clk 0:00:48.4]} 32... Nd7 {[%clk 0:00:43]} 33. Be4 {[%clk
0:00:36.7]} 33... Nxf6 {[%clk 0:00:42.6]} 34. gxf6 {[%clk 0:00:36]} 34... Kg8
{[%clk 0:00:34.3]} 35. Qg5 {[%clk 0:00:31.9]} 35... Kh7 {[%clk 0:00:18]} 36.
Qxh5+ {[%clk 0:00:31.7]} 36... Kg8 {[%clk 0:00:17.8]} 37. Qg5 {[%clk 0:00:22.8]}
37... Kh7 {[%clk 0:00:18]} 38. h4 {[%clk 0:00:22.4]} 38... Bf5 {[%clk
0:00:18.5]} 39. Bxf5 {[%clk 0:00:19.9]} 39... gxf5 {[%clk 0:00:19.4]} 40. Qxf5+
{[%clk 0:00:19.6]} 40... Kh6 {[%clk 0:00:20]} 41. Qg5+ {[%clk 0:00:19]} 41...
Kh7 {[%clk 0:00:20.2]} 42. Kf2 {[%clk 0:00:18.8]} 42... Qe6 {[%clk 0:00:19.3]}
43. Qg7# {[%clk 0:00:17.6]} 1-0

[Event "Early-Titled-Tuesday-Blitz-May-07-2024"]
[Site "Chess.com"]
[Date "2024.05.07"]
[Round "1"]
[White "Manukyan_Artak"]
[Black "VirtualCoach"]
[Result "1/2-1/2"]
[WhiteElo "2556"]
[BlackElo "2140"]
[TimeControl "180+1"]
[EndTime "8:07:24 PDT"]
[Termination "Game drawn by stalemate"]

1. e4 {[%clk 0:02:52.9]} 1... c5 {[%clk 0:02:59.6]} 2. Nf3 {[%clk 0:02:47.4]}
2... Nc6 {[%clk 0:02:58.6]} 3. c3 {[%clk 0:02:44.8]} 3... Nf6 {[%clk 0:02:57.3]}
4. e5 {[%clk 0:02:44.2]} 4... Nd5 {[%clk 0:02:56.1]} 5. d4 {[%clk 0:02:45.1]}
5... cxd4 {[%clk 0:02:55.9]} 6. cxd4 {[%clk 0:02:46]} 6... e6 {[%clk 0:02:56.2]}
7. Nc3 {[%clk 0:02:46.4]} 7... Nxc3 {[%clk 0:02:55.2]} 8. bxc3 {[%clk
0:02:47.3]} 8... d6 {[%clk 0:02:55.1]} 9. Bd3 {[%clk 0:02:46.9]} 9... Qc7 {[%clk
0:02:52.4]} 10. O-O {[%clk 0:02:46.3]} 10... dxe5 {[%clk 0:02:50.2]} 11. dxe5
{[%clk 0:02:46.4]} 11... Be7 {[%clk 0:02:44.5]} 12. Qe2 {[%clk 0:02:45]} 12...
a6 {[%clk 0:02:42.6]} 13. a4 {[%clk 0:02:41.4]} 13... b6 {[%clk 0:02:39.2]} 14.
Qe4 {[%clk 0:02:40.9]} 14... Bb7 {[%clk 0:02:37.9]} 15. Re1 {[%clk 0:02:29.3]}
15... Rd8 {[%clk 0:02:36.7]} 16. Bb1 {[%clk 0:02:15.4]} 16... Nb4 {[%clk
0:02:14.1]} 17. Qg4 {[%clk 0:02:11.8]} 17... Nd5 {[%clk 0:02:06.1]} 18. Qxg7
{[%clk 0:02:09.1]} 18... Kd7 {[%clk 0:01:59.8]} 19. Be4 {[%clk 0:01:51.5]} 19...
Kc8 {[%clk 0:01:49.3]} 20. Qxf7 {[%clk 0:01:49.6]} 20... Kb8 {[%clk 0:01:38.8]}
21. Qxe6 {[%clk 0:01:43.6]} 21... Qxc3 {[%clk 0:01:32]} 22. Bg5 {[%clk
0:01:37.6]} 22... Bxg5 {[%clk 0:01:27.6]} 23. Nxg5 {[%clk 0:01:37.6]} 23... Rhe8
{[%clk 0:01:25.7]} 24. Qh3 {[%clk 0:01:30.9]} 24... Qxh3 {[%clk 0:01:20.8]} 25.
Nxh3 {[%clk 0:01:31.8]} 25... Rxe5 {[%clk 0:01:19]} 26. Bxh7 {[%clk 0:01:32]}
26... Rh5 {[%clk 0:01:14.6]} 27. Be4 {[%clk 0:01:25.6]} 27... Rg8 {[%clk
0:01:10.3]} 28. Bxd5 {[%clk 0:01:12.8]} 28... Bxd5 {[%clk 0:01:08.9]} 29. Nf4
{[%clk 0:01:13.2]} 29... Bxg2 {[%clk 0:01:04.3]} 30. Nxg2 {[%clk 0:01:12.4]}
30... Rhg5 {[%clk 0:01:04.3]} 31. Kf1 {[%clk 0:01:12]} 31... Rxg2 {[%clk
0:01:03.7]} 32. Re8+ {[%clk 0:01:12.3]} 32... Kb7 {[%clk 0:00:58.3]} 33. Rxg8
{[%clk 0:01:11.3]} 33... Rxg8 {[%clk 0:00:57]} 34. Re1 {[%clk 0:01:11]} 34... b5
{[%clk 0:00:56]} 35. axb5 {[%clk 0:01:10.8]} 35... axb5 {[%clk 0:00:56.9]} 36.
f4 {[%clk 0:01:11]} 36... Rf8 {[%clk 0:00:55.4]} 37. Re4 {[%clk 0:01:10.8]}
37... Kc6 {[%clk 0:00:55.4]} 38. Kf2 {[%clk 0:01:11.2]} 38... Kd5 {[%clk
0:00:55.5]} 39. Kf3 {[%clk 0:01:11.3]} 39... Rh8 {[%clk 0:00:55.1]} 40. Re5+
{[%clk 0:01:10]} 40... Kc4 {[%clk 0:00:54.5]} 41. Kg3 {[%clk 0:01:02]} 41... b4
{[%clk 0:00:54.1]} 42. f5 {[%clk 0:01:01.9]} 42... b3 {[%clk 0:00:52]} 43. h4
{[%clk 0:01:00.6]} 43... b2 {[%clk 0:00:49.7]} 44. Re1 {[%clk 0:01:01]} 44...
Rh5 {[%clk 0:00:48.5]} 45. Kg4 {[%clk 0:01:00.9]} 45... Rh8 {[%clk 0:00:48.8]}
46. f6 {[%clk 0:01:00.5]} 46... Kd4 {[%clk 0:00:41.8]} 47. Rb1 {[%clk
0:00:53.5]} 47... Ke5 {[%clk 0:00:40.5]} 48. f7 {[%clk 0:00:52.4]} 48... Kf6
{[%clk 0:00:38.3]} 49. Rxb2 {[%clk 0:00:48.8]} 49... Kxf7 {[%clk 0:00:38.3]} 50.
Rb7+ {[%clk 0:00:47]} 50... Kg6 {[%clk 0:00:38.1]} 51. h5+ {[%clk 0:00:47.1]}
51... Kh6 {[%clk 0:00:37.9]} 52. Rb6+ {[%clk 0:00:46.8]} 52... Kh7 {[%clk
0:00:38.1]} 53. Kg5 {[%clk 0:00:46]} 53... Rg8+ {[%clk 0:00:37.8]} 54. Rg6
{[%clk 0:00:45.3]} 54... Rxg6+ {[%clk 0:00:36.8]} 55. hxg6+ {[%clk 0:00:45.4]}
55... Kg7 {[%clk 0:00:37.5]} 56. Kf5 {[%clk 0:00:45.8]} 56... Kg8 {[%clk
0:00:37.6]} 57. Kf6 {[%clk 0:00:46.7]} 57... Kf8 {[%clk 0:00:38]} 58. Kf5 {[%clk
0:00:47.1]} 58... Kg7 {[%clk 0:00:38.2]} 59. Kg5 {[%clk 0:00:47.6]} 59... Kg8
{[%clk 0:00:38.5]} 60. Kh5 {[%clk 0:00:48.1]} 60... Kg7 {[%clk 0:00:38.8]} 61.
Kg5 {[%clk 0:00:48.8]} 61... Kg8 {[%clk 0:00:39.3]} 62. Kh6 {[%clk 0:00:49.7]}
62... Kh8 {[%clk 0:00:39.7]} 63. g7+ {[%clk 0:00:49.9]} 63... Kg8 {[%clk
0:00:40.1]} 64. Kg6 {[%clk 0:00:50.7]} 1/2-1/2

[Event "Early-Titled-Tuesday-Blitz-May-07-2024"]
[Site "Chess.com"]
[Date "2024.05.07"]
[Round "1"]
[White "sewlins"]
[Black "guillembaches"]
[Result "0-1"]
[WhiteElo "2222"]
[BlackElo "2584"]
[TimeControl "180+1"]
[EndTime "8:07:26 PDT"]
[Termination "guillembaches won on time"]

1. e4 {[%clk 0:02:59.9]} 1... c5 {[%clk 0:02:59.6]} 2. Nf3 {[%clk 0:02:59.6]}
2... d6 {[%clk 0:03:00.2]} 3. d4 {[%clk 0:02:59.9]} 3... cxd4 {[%clk 0:03:01.1]}
4. Nxd4 {[%clk 0:03:00.8]} 4... Nf6 {[%clk 0:03:01.7]} 5. Nc3 {[%clk 0:03:01.5]}
5... Nc6 {[%clk 0:03:02.3]} 6. Bg5 {[%clk 0:02:41.7]} 6... e6 {[%clk 0:03:02.4]}
7. Qd2 {[%clk 0:02:38]} 7... h6 {[%clk 0:03:02.6]} 8. Bxf6 {[%clk 0:02:29.3]}
8... gxf6 {[%clk 0:03:03.5]} 9. O-O-O {[%clk 0:02:27]} 9... a6 {[%clk
0:03:03.6]} 10. f4 {[%clk 0:02:22.7]} 10... Bd7 {[%clk 0:03:03.5]} 11. Nxc6
{[%clk 0:02:07.9]} 11... Bxc6 {[%clk 0:03:03.1]} 12. f5 {[%clk 0:02:07.4]} 12...
h5 {[%clk 0:02:58.7]} 13. Kb1 {[%clk 0:02:06.5]} 13... Qa5 {[%clk 0:02:54.8]}
14. Bc4 {[%clk 0:02:02.9]} 14... Qe5 {[%clk 0:02:52.7]} 15. Bb3 {[%clk
0:01:32.1]} 15... O-O-O {[%clk 0:02:45.4]} 16. Qd3 {[%clk 0:01:22.4]} 16... Kb8
{[%clk 0:02:36.3]} 17. Rhf1 {[%clk 0:01:15.6]} 17... Be7 {[%clk 0:02:29.1]} 18.
Ba4 {[%clk 0:00:49]} 18... Rc8 {[%clk 0:02:19]} 19. Bb3 {[%clk 0:00:40.9]} 19...
h4 {[%clk 0:02:14.1]} 20. Qf3 {[%clk 0:00:29.5]} 20... b5 {[%clk 0:02:09.8]} 21.
fxe6 {[%clk 0:00:24.5]} 21... fxe6 {[%clk 0:02:08.6]} 22. Qh3 {[%clk 0:00:25]}
22... b4 {[%clk 0:01:57.9]} 23. Ne2 {[%clk 0:00:21.3]} 23... Bxe4 {[%clk
0:01:53.3]} 24. Nd4 {[%clk 0:00:20.8]} 24... f5 {[%clk 0:01:39.1]} 25. Nxe6
{[%clk 0:00:19.9]} 25... Bf6 {[%clk 0:01:24]} 26. Nd4 {[%clk 0:00:19.8]} 26...
Rc5 {[%clk 0:01:17.6]} 27. g3 {[%clk 0:00:11.8]} 27... hxg3 {[%clk 0:01:15.4]}
28. Qxg3 {[%clk 0:00:12.6]} 28... Rxh2 {[%clk 0:01:01.3]} 29. Qg8+ {[%clk
0:00:11.9]} 29... Rc8 {[%clk 0:01:00.3]} 30. Qf7 {[%clk 0:00:09.7]} 30... Bxc2+
{[%clk 0:00:45]} 31. Bxc2 {[%clk 0:00:09.9]} 31... Rcxc2 {[%clk 0:00:45.1]} 32.
Qg8+ {[%clk 0:00:06.6]} 32... Kb7 {[%clk 0:00:33.5]} 33. Qf7+ {[%clk 0:00:06.3]}
33... Rc7 {[%clk 0:00:30.6]} 34. Qb3 {[%clk 0:00:04.7]} 34... Qc5 {[%clk
0:00:26.8]} 35. Rxf5 {[%clk 0:00:02.4]} 35... Be5 {[%clk 0:00:25.3]} 36. Qf3+
{[%clk 0:00:01.8]} 36... Kb6 {[%clk 0:00:21.1]} 37. a4 {[%clk 0:00:01.4]} 37...
a5 {[%clk 0:00:16.2]} 0-1

[Event "Early-Titled-Tuesday-Blitz-May-07-2024"]
[Site "Chess.com"]
[Date "2024.05.07"]
[Round "1"]
[White "Yaacovn"]
[Black "PenguinPacks"]
[Result "1-0"]
[WhiteElo "2845"]
[BlackElo "2474"]
[TimeControl "180+1"]
[EndTime "8:07:27 PDT"]
[Termination "Yaacovn won by checkmate"]

1. d4 {[%clk 0:02:58.9]} 1... Nf6 {[%clk 0:02:59.9]} 2. e3 {[%clk 0:02:57.1]}
2... g6 {[%clk 0:02:59.5]} 3. Nf3 {[%clk 0:02:47.4]} 3... Bg7 {[%clk 0:02:59.6]}
4. Be2 {[%clk 0:02:47.9]} 4... O-O {[%clk 0:02:59.9]} 5. O-O {[%clk 0:02:46.9]}
5... d6 {[%clk 0:03:00.5]} 6. b3 {[%clk 0:02:46.3]} 6... Nc6 {[%clk 0:02:58.8]}
7. Bb2 {[%clk 0:02:45.5]} 7... Qe8 {[%clk 0:02:58.2]} 8. Nc3 {[%clk 0:02:44.6]}
8... a6 {[%clk 0:02:58.5]} 9. d5 {[%clk 0:02:42.2]} 9... Nb8 {[%clk 0:02:58]}
10. Qd2 {[%clk 0:02:40.4]} 10... e5 {[%clk 0:02:58.2]} 11. dxe6 {[%clk
0:02:39.2]} 11... Bxe6 {[%clk 0:02:58.8]} 12. Nd4 {[%clk 0:02:38.8]} 12... Bd7
{[%clk 0:02:56.6]} 13. Bf3 {[%clk 0:02:38.8]} 13... Nc6 {[%clk 0:02:56.7]} 14.
Rad1 {[%clk 0:02:38.3]} 14... Rb8 {[%clk 0:02:52.1]} 15. h3 {[%clk 0:02:37.8]}
15... Ne5 {[%clk 0:02:52.2]} 16. Be2 {[%clk 0:02:37.8]} 16... Nc6 {[%clk
0:02:48.1]} 17. Nf3 {[%clk 0:02:37.2]} 17... Qe7 {[%clk 0:02:39.2]} 18. Qc1
{[%clk 0:02:29.2]} 18... Rfe8 {[%clk 0:02:37]} 19. Qa1 {[%clk 0:02:28.8]} 19...
Ne5 {[%clk 0:02:19]} 20. Rd2 {[%clk 0:02:28.8]} 20... Bc6 {[%clk 0:02:18.8]} 21.
Nd4 {[%clk 0:02:28.5]} 21... Bd7 {[%clk 0:02:11]} 22. Rfd1 {[%clk 0:02:27.9]}
22... Rbd8 {[%clk 0:02:04.1]} 23. Bf1 {[%clk 0:02:27.7]} 23... c6 {[%clk
0:02:02.9]} 24. Be2 {[%clk 0:02:18.1]} 24... d5 {[%clk 0:02:02.3]} 25. Nf3
{[%clk 0:02:18.6]} 25... Nxf3+ {[%clk 0:02:00.5]} 26. Bxf3 {[%clk 0:02:19.5]}
26... Bf5 {[%clk 0:01:56.7]} 27. Ne2 {[%clk 0:02:18.9]} 27... Rd6 {[%clk
0:01:47.8]} 28. c4 {[%clk 0:02:18.3]} 28... Red8 {[%clk 0:01:44.5]} 29. cxd5
{[%clk 0:02:08.3]} 29... cxd5 {[%clk 0:01:42.5]} 30. Nd4 {[%clk 0:02:05.8]}
30... Be4 {[%clk 0:01:42.6]} 31. Bxe4 {[%clk 0:01:54.4]} 31... Nxe4 {[%clk
0:01:37.4]} 32. Rc2 {[%clk 0:01:54.4]} 32... Qh4 {[%clk 0:01:31.9]} 33. Nf3
{[%clk 0:01:52.9]} 33... Bxb2 {[%clk 0:01:31.9]} 34. Qxb2 {[%clk 0:01:52.1]}
34... Qe7 {[%clk 0:01:28.9]} 35. Rdc1 {[%clk 0:01:51.3]} 35... R6d7 {[%clk
0:01:25.1]} 36. Ne5 {[%clk 0:01:48.8]} 36... Rd6 {[%clk 0:01:19]} 37. Rc7 {[%clk
0:01:48]} 37... Qe6 {[%clk 0:01:15.8]} 38. Nxf7 {[%clk 0:01:46.5]} 38... d4
{[%clk 0:01:11.4]} 39. Nxd8 {[%clk 0:01:37.5]} 39... Rxd8 {[%clk 0:01:12.3]} 40.
Rxb7 {[%clk 0:01:32.6]} 40... Qf5 {[%clk 0:01:01.3]} 41. Rc4 {[%clk 0:01:24.3]}
41... Rf8 {[%clk 0:00:57]} 42. Rcc7 {[%clk 0:01:16]} 42... Ng5 {[%clk
0:00:46.2]} 43. Rg7+ {[%clk 0:00:50.1]} 43... Kh8 {[%clk 0:00:45.9]} 44. Rgd7
{[%clk 0:00:46.1]} 44... Kg8 {[%clk 0:00:41.2]} 45. h4 {[%clk 0:00:37.9]} 45...
Qd3 {[%clk 0:00:30.5]} 46. Rxd4 {[%clk 0:00:26.3]} 46... Nh3+ {[%clk 0:00:23.2]}
47. gxh3 {[%clk 0:00:25.5]} 47... Qe2 {[%clk 0:00:23.7]} 48. Rg7+ {[%clk
0:00:19.6]} 48... Kh8 {[%clk 0:00:22.7]} 49. Rxh7+ {[%clk 0:00:17.1]} 49... Kxh7
{[%clk 0:00:17.9]} 50. Rd7+ {[%clk 0:00:16.5]} 50... Rf7 {[%clk 0:00:18.2]} 51.
Rxf7+ {[%clk 0:00:16.1]} 51... Kh6 {[%clk 0:00:18.9]} 52. Qh8# {[%clk
0:00:15.9]} 1-0

[Event "Early-Titled-Tuesday-Blitz-May-07-2024"]
[Site "Chess.com"]
[Date "2024.05.07"]
[Round "1"]
[White "Bilan_Danila"]
[Black "abelmat"]
[Result "1-0"]
[WhiteElo "2555"]
[BlackElo "2024"]
[TimeControl "180+1"]
[EndTime "8:07:29 PDT"]
[Termination "Bilan_Danila won on time"]

1. d4 {[%clk 0:02:50.7]} 1... d5 {[%clk 0:02:59.6]} 2. Nf3 {[%clk 0:02:51.3]}
2... e6 {[%clk 0:02:58.7]} 3. c4 {[%clk 0:02:51.9]} 3... Nf6 {[%clk 0:02:58.6]}
4. Nc3 {[%clk 0:02:49.6]} 4... Be7 {[%clk 0:02:56.8]} 5. Bf4 {[%clk 0:02:44.9]}
5... b6 {[%clk 0:02:48.1]} 6. cxd5 {[%clk 0:02:39]} 6... exd5 {[%clk 0:02:44.8]}
7. e3 {[%clk 0:02:34.8]} 7... Bb7 {[%clk 0:02:45.1]} 8. Bb5+ {[%clk 0:02:22.1]}
8... Nbd7 {[%clk 0:02:35.8]} 9. Ne5 {[%clk 0:02:16.9]} 9... O-O {[%clk
0:02:33.8]} 10. Nc6 {[%clk 0:02:14.4]} 10... Qe8 {[%clk 0:02:20.5]} 11. Bxc7
{[%clk 0:02:01.4]} 11... Rc8 {[%clk 0:02:10.5]} 12. Nxe7+ {[%clk 0:01:56.6]}
12... Qxe7 {[%clk 0:02:08.5]} 13. Bg3 {[%clk 0:01:54.2]} 13... Qb4 {[%clk
0:01:56.1]} 14. Qb3 {[%clk 0:01:45.7]} 14... Qe7 {[%clk 0:01:45.9]} 15. O-O
{[%clk 0:01:38.7]} 15... a6 {[%clk 0:01:37.3]} 16. Bd3 {[%clk 0:01:26.7]} 16...
b5 {[%clk 0:01:30.6]} 17. Rac1 {[%clk 0:00:56.9]} 17... Nb6 {[%clk 0:01:29.7]}
18. Bf5 {[%clk 0:00:55.3]} 18... Rcd8 {[%clk 0:01:18.9]} 19. Nxb5 {[%clk
0:00:31.6]} 19... axb5 {[%clk 0:01:02.9]} 20. Rc7 {[%clk 0:00:28.8]} 20... Qe8
{[%clk 0:00:39.6]} 21. Rxb7 {[%clk 0:00:24.8]} 21... Nc4 {[%clk 0:00:38.7]} 22.
Qxb5 {[%clk 0:00:21.2]} 22... Qxb5 {[%clk 0:00:29.2]} 23. Rxb5 {[%clk
0:00:22.1]} 23... Ne4 {[%clk 0:00:19.9]} 24. Bxe4 {[%clk 0:00:18.4]} 24... dxe4
{[%clk 0:00:20.7]} 25. b3 {[%clk 0:00:18.8]} 25... Nb2 {[%clk 0:00:18.4]} 26.
Rb1 {[%clk 0:00:14.4]} 26... Nd3 {[%clk 0:00:16.8]} 27. a4 {[%clk 0:00:14.2]}
27... h6 {[%clk 0:00:13.7]} 28. a5 {[%clk 0:00:14]} 28... Ra8 {[%clk 0:00:13.4]}
29. b4 {[%clk 0:00:14.5]} 29... Rfc8 {[%clk 0:00:12.1]} 30. Rb6 {[%clk
0:00:12.7]} 30... Nc1 {[%clk 0:00:05.9]} 31. a6 {[%clk 0:00:10.3]} 31... Ne2+
{[%clk 0:00:04.8]} 32. Kf1 {[%clk 0:00:09.3]} 32... Nc3 {[%clk 0:00:02.4]} 33.
Rc1 {[%clk 0:00:07.9]} 1-0

[Event "Early-Titled-Tuesday-Blitz-May-07-2024"]
[Site "Chess.com"]
[Date "2024.05.07"]
[Round "1"]
[White "ilushka"]
[Black "alexrustemov"]
[Result "0-1"]
[WhiteElo "2523"]
[BlackElo "2955"]
[TimeControl "180+1"]
[EndTime "8:07:30 PDT"]
[Termination "alexrustemov won by resignation"]

1. Nf3 {[%clk 0:03:00.9]} 1... d5 {[%clk 0:02:59.7]} 2. g3 {[%clk 0:02:59.6]}
2... c6 {[%clk 0:03:00]} 3. Bg2 {[%clk 0:02:54.9]} 3... Bf5 {[%clk 0:03:00.4]}
4. c4 {[%clk 0:02:54]} 4... e6 {[%clk 0:02:54]} 5. cxd5 {[%clk 0:02:52.4]} 5...
exd5 {[%clk 0:02:53.1]} 6. O-O {[%clk 0:02:50.7]} 6... Nf6 {[%clk 0:02:51.9]} 7.
d3 {[%clk 0:02:51.3]} 7... Nbd7 {[%clk 0:02:48.4]} 8. Nc3 {[%clk 0:02:51.8]}
8... Bc5 {[%clk 0:02:40.3]} 9. e4 {[%clk 0:02:50.5]} 9... dxe4 {[%clk
0:02:38.9]} 10. dxe4 {[%clk 0:02:51.4]} 10... Bg4 {[%clk 0:02:36.7]} 11. h3
{[%clk 0:02:48.2]} 11... Bxf3 {[%clk 0:02:36]} 12. Qxf3 {[%clk 0:02:45.7]} 12...
O-O {[%clk 0:02:35.1]} 13. Bf4 {[%clk 0:02:38.8]} 13... Qe7 {[%clk 0:02:32.6]}
14. Rad1 {[%clk 0:02:34.8]} 14... Ne5 {[%clk 0:02:28.7]} 15. Qe2 {[%clk
0:02:33.3]} 15... Rad8 {[%clk 0:02:27.7]} 16. Kh2 {[%clk 0:02:29.9]} 16... Rfe8
{[%clk 0:02:23.9]} 17. a3 {[%clk 0:02:28.2]} 17... Bd4 {[%clk 0:02:17.9]} 18.
Qc2 {[%clk 0:02:08.1]} 18... Qc5 {[%clk 0:02:11.8]} 19. Qb3 {[%clk 0:02:00.5]}
19... Qb6 {[%clk 0:02:09.9]} 20. Qxb6 {[%clk 0:01:57.3]} 20... axb6 {[%clk
0:02:10.8]} 21. Bxe5 {[%clk 0:01:07.1]} 21... Bxe5 {[%clk 0:02:09.4]} 22. f4
{[%clk 0:00:52.9]} 22... Bxc3 {[%clk 0:02:08.9]} 23. bxc3 {[%clk 0:00:53.8]}
23... b5 {[%clk 0:02:04.8]} 24. e5 {[%clk 0:00:50.9]} 24... Nd7 {[%clk
0:02:04.1]} 25. Rd4 {[%clk 0:00:36.3]} 25... Nb6 {[%clk 0:01:57.4]} 26. Ra1
{[%clk 0:00:12.7]} 26... Ra8 {[%clk 0:01:56.2]} 27. Bf1 {[%clk 0:00:10.7]} 27...
Red8 {[%clk 0:01:42.6]} 28. Kg2 {[%clk 0:00:09.5]} 28... Kf8 {[%clk 0:01:41.7]}
29. Kf3 {[%clk 0:00:09.5]} 29... Ke7 {[%clk 0:01:38.2]} 30. Ke4 {[%clk 0:00:10]}
30... f6 {[%clk 0:01:32.3]} 31. c4 {[%clk 0:00:10.2]} 31... fxe5 {[%clk
0:01:28.2]} 32. fxe5 {[%clk 0:00:08.2]} 32... Rxd4+ {[%clk 0:01:22.2]} 33. Kxd4
{[%clk 0:00:08.5]} 33... Nxc4 {[%clk 0:01:22.8]} 34. Bxc4 {[%clk 0:00:08.3]}
34... Ra4 {[%clk 0:01:23.5]} 35. Kc5 {[%clk 0:00:03.8]} 35... Rxc4+ {[%clk
0:01:18.1]} 36. Kb6 {[%clk 0:00:04.7]} 36... Ke6 {[%clk 0:01:12.2]} 37. Kxb7
{[%clk 0:00:05.1]} 37... Kxe5 {[%clk 0:01:12.5]} 38. Re1+ {[%clk 0:00:05.5]}
38... Kf6 {[%clk 0:01:11.5]} 39. Re3 {[%clk 0:00:03.5]} 39... g5 {[%clk
0:01:10.1]} 40. Kb6 {[%clk 0:00:03.3]} 40... h5 {[%clk 0:01:09.7]} 41. Ka5
{[%clk 0:00:00.5]} 41... Kf5 {[%clk 0:01:08.3]} 42. Kb6 {[%clk 0:00:01.4]} 42...
g4 {[%clk 0:01:03.7]} 43. hxg4+ {[%clk 0:00:02.3]} 43... Kxg4 {[%clk 0:00:58.5]}
44. Kb7 {[%clk 0:00:01.5]} 44... c5 {[%clk 0:00:57.2]} 45. Kb6 {[%clk
0:00:01.2]} 45... b4 {[%clk 0:00:57.3]} 46. axb4 {[%clk 0:00:01.9]} 46... cxb4
{[%clk 0:00:57.7]} 47. Kb5 {[%clk 0:00:02.4]} 47... Rc3 {[%clk 0:00:56.9]} 48.
Re4+ {[%clk 0:00:02.6]} 48... Kxg3 {[%clk 0:00:55.8]} 49. Kxb4 {[%clk
0:00:02.7]} 49... Rc8 {[%clk 0:00:50]} 50. Re7 {[%clk 0:00:02.9]} 50... Rg8
{[%clk 0:00:47.5]} 51. Rh7 {[%clk 0:00:02.2]} 51... h4 {[%clk 0:00:47.1]} 52.
Kc3 {[%clk 0:00:03.1]} 52... h3 {[%clk 0:00:47.4]} 53. Kd2 {[%clk 0:00:03.7]}
53... Kg2 {[%clk 0:00:47.5]} 54. Ke2 {[%clk 0:00:03.3]} 54... h2 {[%clk
0:00:47.6]} 0-1